lending/lending_fUSD_20250920
["ID","MTS","AMOUNT","RATE_DAILY","PERIOD"]
[386515182,1758329442690,-1425.0,0.00019984,2]
[386515183,1758329442700,-177.84654444,0.0001999,2]
[386515184,1758329442710,-151.0,0.00019994,2]
[386515185,1758329442720,-1425.0,0.00019996,2]
[386515186,1758329442731,-3384.2246345,0.00019997,2]
[386515187,1758329442740,-22419.1601308,0.00019997,2]
[386515188,1758329442753,-151.0,0.00019997,2]
[386515189,1758329442763,-500.0,0.00019998,2]
[386515190,1758329442773,-500.0,0.00019998,2]
[386515191,1758329442783,-325.44623276,0.00019999,2]
[386515192,1758329442794,-300.0,0.00019999,2]
[386515193,1758329442804,-300.0,0.00019999,2]
[386515194,1758329442814,-36302.4428903,0.00019999,2]
[386515195,1758329442824,-4092.1825039,0.00019999,2]
[386515196,1758329442834,-84716.8316185,0.00019999,2]
[386515197,1758329442844,-12319.8051818,0.00019999,2]
[386515198,1758329442854,-500.0,0.00019999,2]
[386515199,1758329442864,-500.0,0.00019999,2]
[386515200,1758329442876,-500.0,0.00019999,2]
[386515201,1758329442887,-500.0,0.00019999,2]
[386515202,1758329442899,-500.0,0.00019999,2]
[386515203,1758329442911,-500.0,0.00019999,2]
[386515204,1758329442924,-500.0,0.00019999,2]
[386515205,1758329442936,-500.0,0.00019999,2]
[386515206,1758329442948,-500.0,0.00019999,2]
[386515207,1758329442959,-500.0,0.00019999,2]
[386515208,1758329442978,-500.0,0.00019999,2]
[386515209,1758329442990,-645.26,0.00019999,2]
[386515210,1758329443002,-332.63380191,0.00019999,2]
[386515211,1758329443014,-1317.43,0.00019999,2]
[386515212,1758329443027,-400.0,0.00019999,2]
[386515213,1758329443040,-511.71,0.00019999,2]
[386515214,1758329443052,-980.78,0.00019999,2]
[386515215,1758329443063,-567.36,0.00019999,2]
[386515216,1758329443076,-477.2,0.00019999,2]
[386515217,1758329443089,-400.0,0.00019999,2]
[386515218,1758329443101,-500.0,0.00019999,2]
[386515219,1758329443113,-500.0,0.00019999,2]
[386515220,1758329443125,-500.0,0.00019999,2]
[386515221,1758329443137,-500.0,0.00019999,2]
[386515222,1758329443150,-500.0,0.00019999,2]
[386515223,1758329443162,-459.30620187,0.00019999,2]
[386515224,1758329443174,-406.88,0.00019999,2]
[386515225,1758329443183,-989.87,0.00019999,2]
[386515226,1758329443192,-526.54,0.00019999,2]
[386515227,1758329443202,-1173.0,0.0002,2]
[386515228,1758329443214,-25197.17255514,0.0002,2]
[386515229,1758329443224,-64724.02045809,0.0002,2]
[386515230,1758329443234,-207506.46786382,0.0002,2]
[386515231,1758329443252,-89964.39914528,0.0002,2]
[386515232,1758329443264,-182575.78125264,0.0002,2]
[386515233,1758329443275,-125370.75388965,0.0002,2]
[386515234,1758329443292,-26067.68484797,0.0002,2]
[386515235,1758329445017,-172.96308799,0.00019651,2]
[386515236,1758329445028,-267.76081818,0.00019751,2]
[386515237,1758329445137,-3023.16838824,0.00019751,2]
[386515238,1758329445435,-4657.35679358,0.00019751,2]
[386515239,1758329445446,-2911155.03795794,0.0002,2]
[386515240,1758329445466,-2318.9485302,0.0002,2]
[386515241,1758329445478,-838.10027455,0.0002,2]
[386515242,1758329445490,-10829.34431037,0.0002,2]
[386515243,1758329445502,-3574.52642412,0.0002,2]
[386515244,1758329445513,-36871.44099892,0.0002,2]
[386515245,1758329445525,-274.26881639,0.0002,2]
[386515246,1758329445843,-0.06121489,0.0002,2]
[386515253,1758329447527,-441.33697232,0.00019409,2]
[386515254,1758329512627,500.0,0.00017731,2]
[386515255,1758329529243,700.0,0.00017731,2]
[386515256,1758329533573,-251.8809459,0.0001863,2]
[386515257,1758329536072,-248.1190541,0.0001863,2]
[386515258,1758329536096,-8.6009459,0.0001863,2]
[386515259,1758329539702,-277.08,0.0001863,2]
[386515260,1758329542155,-48.05009996,0.0001863,2]
[386515261,1758329542180,-145.86989904,0.0001863,2]
[386515262,1758329614172,-186.99390288,0.00018827,2]
[386515263,1758329677307,500.0,0.00016986,2]
[386515264,1758329755217,500.0,0.00016986,2]
[386515265,1758329763622,-198.56,0.00018689,2]
[386515266,1758329765508,-101.44,0.00018689,2]
[386515267,1758329765531,-50.0,0.0001869,2]
[386515268,1758329798116,700.0,0.00016986,2]
[386515269,1758329802419,700.0,0.00018082,2]
[386515270,1758329806301,154.81,9.344e-05,2]
[386515271,1758329806431,154.81,0.00011213,2]
[386515272,1758329806574,154.81,0.00013082,2]
[386515273,1758329806809,154.81,0.0001495,2]
[386515274,1758329807018,154.81,0.00016819,2]
[386515275,1758329910785,-191.29742695,0.00018563,2]
[386515276,1758329956435,-289.8816866,0.00018533,2]
[386515277,1758330004447,-94.8283134,0.00018533,2]
[386515278,1758330004469,-57.1716866,0.00018533,2]
[386515279,1758330007402,-97.4883134,0.00018533,2]
[386515280,1758330007424,-62.5116866,0.00018542,2]
[386515281,1758330011950,-213.28431436,0.00018537,2]
[386515282,1758330015800,-86.71568564,0.00018537,2]
[386515283,1758330015824,-229.93705131,0.00018542,2]
[386515284,1758330022000,-151.75366113,0.00018542,2]
[386515285,1758330024320,-171.0,0.00018542,2]
[386515286,1758330025747,-336.88701164,0.00018542,2]
[386515287,1758330027642,-274.80724542,0.00018542,2]
[386515288,1758330029865,163.81508482,0.00018462,2]
[386515289,1758330030388,2088.51,0.00018514,2]
[386515290,1758330033807,-474.48348291,0.00018542,2]
[386515291,1758330035761,-260.80368942,0.00018542,2]
[386515292,1758330037641,-172.1,0.00018542,2]
[386515293,1758330039626,-53.90617157,0.00018542,2]
[386515294,1758330043534,-237.96151191,0.00018561,2]
[386515295,1758330046132,-151.97419906,0.00018561,2]
[386515296,1758330048286,-110.06428903,0.00018561,2]
[386515297,1758330048310,-69.02029713,0.00018561,2]
[386515298,1758330077086,-210.06350025,0.00018561,2]
[386515300,1758330104679,150.0,0.00018507,7]
[386515301,1758330138174,-188.5386634,0.00018561,2]
[386515302,1758330153336,1000.0,0.0001846,2]
[386515303,1758330162555,-182.31385239,0.0001856,2]
[386515304,1758330164980,-151.0,0.0001856,2]
[386515305,1758330166914,-288.23930148,0.0001856,2]
[386515306,1758330168853,-0.56446991,0.0001856,2]
[386515307,1758330168878,-199.67756521,0.00018561,2]
[386515308,1758330172622,900.0,0.00030137,120]
[386515309,1758330227070,-38.2839467,0.00018561,2]
[386515310,1758330227097,-196.15859647,0.00018561,2]
[386515311,1758330251750,-285.4431591,0.00018561,2]
[386515312,1758330262054,-14.5568409,0.00018561,2]
[386515313,1758330262077,-167.40655976,0.00018561,2]
[386515314,1758330264526,-136.43484377,0.00018561,2]
[386515315,1758330264552,-26.85039549,0.00018561,2]
[386515316,1758330267476,-156.56829643,0.00018561,2]
[386515317,1758330269955,-40.71606279,0.00018561,2]
[386515318,1758330269978,-123.84077811,0.00018561,2]
[386515319,1758330273761,-168.33833573,0.00018561,2]
[386515320,1758330273786,-125.09336784,0.00018562,2]
[386515321,1758330311034,150.0,0.00018,2]
[386515322,1758330313450,150.0,0.00018,2]
[386515323,1758330313566,150.0,0.00018,2]
[386515324,1758330317292,150.0,0.00018,2]
[386515325,1758330320610,277.2672872,0.00018,2]
[386515326,1758330334142,150.0,0.00018,2]
[386515327,1758330334256,150.0,0.00018,2]
[386515328,1758330335771,250.0,0.00018479,2]
[386515329,1758330336750,150.0,0.00018,2]
[386515330,1758330338066,3148.39,0.00018458,2]
[386515331,1758330339616,163.81508481,0.00018462,2]
[386515332,1758330376552,-160.0,0.00018562,2]
[386515333,1758330376574,-118.796089,0.00018562,2]
[386515334,1758330380138,247.51786736,0.00018432,2]
[386515335,1758330380159,6657.37213264,0.00018432,2]
[386515336,1758330381412,-280.25091325,0.00018562,2]
[386515337,1758330383878,-186.420854,0.00018562,2]
[386515338,1758330407218,-301.0,0.00018562,2]
[386515339,1758330410894,-313.53214375,0.00018562,2]
[386515340,1758330410918,-54.52972543,0.00018562,2]
[386515341,1758330412271,-327.76473074,0.00018562,2]
[386515342,1758330415346,-198.50174261,0.00018562,2]
[386515343,1758330417828,-209.20380122,0.00018562,2]
[386515344,1758330442752,-161.92282153,0.00018562,2]
[386515346,1758330444245,500.0,0.00016986,2]
[386515347,1758330445247,-175.0,0.00018562,2]
[386515348,1758330447232,-73.07717847,0.00018562,2]
[386515349,1758330447255,-211.60282767,0.00018562,3]
[386515350,1758330450041,-237.85496539,0.00018562,3]
[386515351,1758330454213,-266.52604259,0.00018562,3]
[386515352,1758330457201,-335.08390486,0.00018562,3]
[386515353,1758330458605,-183.48164949,0.00018562,3]
[386515355,1758330461723,-242.59669286,0.00018562,3]
[386515356,1758330463704,200.0,0.0001837,2]
[386515357,1758330464759,-391.65000614,0.00018562,3]
[386515358,1758330474482,278.796089,0.00018469,2]
[386515359,1758330498879,2005.70397219,0.000185,4]
[386515360,1758330512099,-131.203911,0.00018562,3]
[386515361,1758330512121,-119.89144649,0.00018562,2]
[386515362,1758330514068,-168.01235904,0.00018562,2]
[386515363,1758330516563,-200.93165464,0.00018562,2]
[386515364,1758330518518,-65.68991951,0.00018562,2]
[386515365,1758330518541,-113.91335757,0.00018562,2]
[386515366,1758330522123,-52.65970077,0.00018562,2]
[386515367,1758330522146,-156.8943283,0.00018562,2]
[386515368,1758330522168,-119.99702055,0.00018563,2]
[386515369,1758330524816,-31.00297945,0.00018563,2]
[386515370,1758330524838,-151.0,0.00018563,2]
[386515371,1758330524860,-78.91010122,0.00018563,2]
[386515372,1758330526222,-154.41543512,0.00018561,2]
[386515373,1758330529726,-285.22495436,0.00018561,2]
[386515374,1758330543451,150.0,0.00018373,2]
[386515375,1758330558280,-60.35961052,0.00018561,2]
[386515376,1758330558309,-204.28292444,0.00018561,2]
[386515377,1758330561808,-5.8030569,0.00018561,2]
[386515378,1758330561833,-194.84023436,0.00018561,2]
[386515379,1758330565431,-248.39782351,0.00018561,2]
[386515380,1758330568957,-56.76194213,0.00018561,2]
[386515381,1758330568982,-196.25799492,0.00018561,2]
[386515382,1758330573496,-4.29547523,0.00018561,2]
[386515383,1758330573522,-290.91540859,0.00018561,2]
[386515384,1758330576857,-174.37041763,0.00018561,2]
[386515385,1758330576882,-115.40994651,0.00018563,2]
[386515386,1758330581535,-161.07934839,0.00018563,2]
[386515387,1758330581558,-189.86965875,0.00018563,2]
[386515388,1758330585168,-152.11,0.00018561,2]
[386515389,1758330587389,-162.51864438,0.00018561,2]
[386515390,1758330587414,-8.15842639,0.00018563,2]
[386515391,1758330588949,-542.10726313,0.00018563,2]
[386515392,1758330592309,-346.43848851,0.00018563,2]
[386515393,1758330595627,-299.92273687,0.00018561,2]
[386515394,1758330596621,-200.07726313,0.00018561,2]
[386515395,1758330596645,-104.52138923,0.00018561,2]
[386515396,1758330599743,-247.03195181,0.00018561,2]
[386515397,1758330599766,-97.58860611,0.00018563,2]
[386515398,1758330604495,-198.0,0.00018563,2]
[386515399,1758330606790,-259.0,0.00018563,2]
[386515400,1758330609365,-219.4982137,0.00018563,2]
[386515401,1758330611504,-192.69182565,0.00018563,2]
[386515402,1758330617906,-202.72657724,0.00018561,2]
[386515403,1758330619468,-297.27342276,0.00018561,2]
[386515404,1758330619494,-160.16034045,0.00018561,2]
[386515405,1758330620366,864.038489,0.0001847,2]
[386515406,1758330623580,-177.75205546,0.00018561,2]
[386515407,1758330624907,-111.22955124,0.00018561,2]
[386515408,1758330624929,-76.58040941,0.00018563,2]
[386515409,1758330626953,-312.67198907,0.00018563,2]
[386515410,1758330628189,-206.0,0.00018563,2]
[386515411,1758330630719,-295.51650308,0.00018563,2]
[386515418,1758330631699,-627.02108803,0.00018563,2]
[386515419,1758330631709,-2000.0,0.00018575,3]
[386515420,1758330631720,-162.68,0.00018624,2]
[386515421,1758330631730,-154.81,0.00018688,2]
[386515422,1758330631740,-300.0,0.00018689,2]
[386515423,1758330631750,-1200.0,0.00018689,2]
[386515424,1758330631760,-10778.6,0.0001869,2]
[386515425,1758330631770,-225.36,0.00018783,2]
[386515426,1758330631780,-213.28431436,0.00018814,2]
[386515427,1758330631790,-7965.41053268,0.0001883,2]
[386515428,1758330631801,-153.28,0.00018835,2]
[386515429,1758330631811,-516.28889176,0.00018852,2]
[386515430,1758330631821,-155.0,0.00018858,2]
[386515431,1758330631831,-151.0,0.00018859,2]
[386515432,1758330631841,-322.6107,0.00018859,2]
[386515433,1758330631851,-521.32663317,0.00018859,2]
[386515434,1758330631863,-151.0,0.00018859,2]
[386515435,1758330631873,-151.0,0.00018859,2]
[386515436,1758330631883,-151.0,0.00018859,2]
[386515437,1758330631892,-151.0,0.00018859,2]
[386515438,1758330631902,-151.0,0.00018859,2]
[386515439,1758330631912,-151.0,0.00018859,2]
[386515440,1758330631922,-151.0,0.00018859,2]
[386515441,1758330631932,-151.0,0.00018859,2]
[386515442,1758330631943,-151.0,0.00018859,2]
[386515443,1758330631952,-151.0,0.00018859,2]
[386515444,1758330631961,-151.0,0.00018859,2]
[386515445,1758330631970,-151.0,0.00018859,2]
[386515446,1758330631980,-151.0,0.00018859,2]
[386515447,1758330631991,-151.0,0.00018859,2]
[386515448,1758330632001,-179.62351824,0.00018859,2]
[386515449,1758330632011,-21907.07984527,0.0001887,2]
[386515456,1758330632271,-1111.38609621,0.0001887,2]
[386515459,1758330632291,-3686.71204992,0.0001887,2]
[386515461,1758330632302,-1438.05385139,0.00018874,2]
[386515464,1758330632312,-8260.13072239,0.00018885,2]
[386515466,1758330632322,-179.91,0.000189,2]
[386515468,1758330632332,-7693.38542134,0.0001894,2]
[386515470,1758330632341,-1000.0,0.00019,3]
[386515472,1758330632354,-152.159125,0.00019,2]
[386515475,1758330632364,-168.0,0.00019088,2]
[386515477,1758330632374,-1160.69,0.000191,2]
[386515479,1758330632384,-2386.33,0.00019111,2]
[386515481,1758330632394,-168.0,0.00019118,2]
[386515483,1758330632403,-158.25,0.00019152,2]
[386515485,1758330632414,-168.0,0.00019172,2]
[386515487,1758330632424,-700.0,0.00019178,2]
[386515489,1758330632433,-500.0,0.00019178,2]
[386515491,1758330632443,-500.0,0.00019178,2]
[386515493,1758330632453,-4136.76,0.00019178,2]
[386515495,1758330632462,-168.0,0.00019208,2]
[386515497,1758330632471,-162.11,0.00019264,2]
[386515499,1758330632481,-592.13101344,0.00019274,2]
[386515501,1758330632491,-180.06,0.00019302,2]
[386515503,1758330632501,-171.0,0.0001932,2]
[386515505,1758330632511,-168.0,0.00019338,2]
[386515507,1758330632520,-168.0,0.00019352,2]
[386515509,1758330632530,-384.71,0.00019459,2]
[386515511,1758330632540,-9159.37194216,0.00019469,2]
[386515513,1758330632550,-2000.0,0.000195,2]
[386515515,1758330632559,-1479.6912,0.00019513,2]
[386515517,1758330632570,-3605.88662682,0.00019525,2]
[386515519,1758330632580,-168.0,0.00019568,2]
[386515521,1758330632590,-3392.0,0.00019613,2]
[386515523,1758330632599,-921.0,0.00019613,2]
[386515526,1758330632610,-2040.0,0.00019613,2]
[386515528,1758330632621,-552.60954686,0.00019613,2]
[386515530,1758330632633,-708.39045314,0.00019613,2]
[386515532,1758330632643,-1304.0,0.00019615,2]
[386515534,1758330632653,-569.0,0.00019615,2]
[386515536,1758330632663,-602.0,0.00019615,2]
[386515538,1758330632673,-1581.0,0.00019615,2]
[386515540,1758330632683,-813.0,0.00019615,2]
[386515542,1758330632694,-898.0,0.00019615,2]
[386515544,1758330632703,-1349.09430013,0.00019615,2]
[386515563,1758330632984,206.0,0.0001847,2]
[386515785,1758330637647,-163.81508481,0.00018524,2]
[386515786,1758330637657,-388.16776578,0.00018574,2]
[386515787,1758330637666,-4174.0,0.00019615,2]
[386515788,1758330637676,-727.0,0.00019615,2]
[386515789,1758330637686,-6181.0,0.00019615,2]
[386515790,1758330637695,-12428.95742006,0.00019615,2]
[386515791,1758330637706,-6451.04257994,0.00019615,2]
[386515792,1758330637715,-1425.0,0.00019741,2]
[386515793,1758330637725,-150.0,0.00019751,2]
[386515794,1758330637734,-1946.02,0.000198,2]
[386515795,1758330637744,-1345.74746,0.000198,2]
[386515796,1758330637753,-1345.74746,0.000198,2]
[386515797,1758330637763,-1345.74745,0.000198,2]
[386515798,1758330637774,-684.488,0.0001984,2]
[386515799,1758330637785,-200.0,0.0001984,2]
[386515800,1758330637795,-2500.0,0.00019847,3]
[386515801,1758330637806,-2500.0,0.00019856,3]
[386515802,1758330637817,-2500.0,0.00019865,3]
[386515803,1758330637828,-14.20705006,0.00019874,3]
[386515804,1758330637900,-383.376,0.00019874,3]
[386515823,1758330639611,-2102.41694994,0.00019874,3]
[386515824,1758330639621,-2500.0,0.00019882,3]
[386515825,1758330639631,-5800.0,0.00019883,2]
[386515827,1758330639640,-2500.0,0.00019891,3]
[386515829,1758330639650,-5800.0,0.00019892,2]
[386515831,1758330639660,-348.56,0.00019893,2]
[386515832,1758330639669,-822.25,0.00019893,2]
[386515834,1758330639679,-5800.0,0.000199,2]
[386515836,1758330639688,-197.91282707,0.000199,2]
[386515837,1758330639698,-5000.0,0.000199,2]
[386515839,1758330639707,-172.96308799,0.000199,2]
[386515841,1758330639717,-2500.0,0.000199,3]
[386515843,1758330639726,-379.31238804,0.000199,2]
[386515845,1758330639735,-506.41566698,0.000199,2]
[386515846,1758330639745,-1289.97001852,0.000199,2]
[386515848,1758330639755,-250.0,0.00019917,2]
[386515850,1758330639764,-202.3,0.00019922,2]
[386515852,1758330639773,-760.06764174,0.00019925,2]
[386515853,1758330639783,-150.0,0.00019938,2]
[386515855,1758330639792,-150.0,0.00019938,2]
[386515856,1758330639802,-500.0,0.00019938,2]
[386515857,1758330639811,-150.0,0.00019938,2]
[386515858,1758330639822,-150.0,0.00019938,2]
[386515859,1758330639831,-150.0,0.00019938,2]
[386515861,1758330639842,-150.0,0.00019938,2]
[386515863,1758330639851,-150.0,0.00019938,2]
[386515865,1758330639861,-500.0,0.00019938,2]
[386515867,1758330639871,-540.0,0.00019938,2]
[386515869,1758330639880,-150.0,0.00019938,2]
[386515871,1758330639890,-2184.0,0.00019938,2]
[386515873,1758330639899,-150.0,0.00019938,2]
[386515875,1758330639909,-756.0,0.00019938,2]
[386515877,1758330639919,-500.0,0.00019938,2]
[386515878,1758330639928,-150.0,0.00019938,2]
[386515879,1758330639937,-150.0,0.00019938,2]
[386515880,1758330639946,-500.0,0.00019938,2]
[386515881,1758330639955,-150.0,0.00019938,2]
[386515882,1758330639965,-150.0,0.00019938,2]
[386515883,1758330639974,-500.0,0.00019938,2]
[386515884,1758330639984,-500.0,0.00019938,2]
[386515885,1758330639993,-500.0,0.00019938,2]
[386515886,1758330640002,-505.0,0.00019938,2]
[386515887,1758330640011,-247.87540003,0.00019938,2]
[386515888,1758330640021,-150.0,0.00019938,2]
[386515889,1758330640031,-545.0,0.00019938,2]
[386515890,1758330640040,-150.0,0.00019938,2]
[386515891,1758330640050,-150.0,0.00019938,2]
[386515892,1758330640059,-500.0,0.00019938,2]
[386515893,1758330640069,-150.0,0.00019938,2]
[386515894,1758330640078,-1172.0,0.00019938,2]
[386515895,1758330640087,-500.0,0.00019938,2]
[386515896,1758330640097,-1425.0,0.00019959,2]
[386515897,1758330640107,-500.0,0.00019973,2]
[386515898,1758330640116,-500.0,0.00019973,2]
[386515899,1758330640126,-500.0,0.00019973,2]
[386515900,1758330640136,-500.0,0.00019973,2]
[386515901,1758330640146,-152.05,0.0001999,2]
[386515902,1758330640156,-152.05,0.0001999,2]
[386515903,1758330640165,-152.05,0.0001999,2]
[386515904,1758330640175,-152.05,0.0001999,2]
[386515905,1758330640184,-152.05,0.0001999,2]
[386515906,1758330640193,-152.05,0.0001999,2]
[386515907,1758330640202,-152.05,0.0001999,2]
[386515908,1758330640212,-177.84654444,0.0001999,2]
[386515909,1758330640221,-151.0,0.00019997,2]
[386515910,1758330640230,-300.0,0.00019999,2]
[386515911,1758330640240,-300.0,0.00019999,2]
[386515912,1758330640249,-300.0,0.00019999,2]
[386515913,1758330640259,-300.0,0.00019999,2]
[386515914,1758330640268,-1000.0,0.00019999,2]
[386515915,1758330640277,-730.0779922,0.00019999,2]
[386515916,1758330640287,-152.84998148,0.00019999,2]
[386515917,1758330640296,-1093.0,0.0002,2]
[386515918,1758330640305,-33127.41377023,0.0002,2]
[386515919,1758330640315,-61894.85278831,0.0002,2]
[386515920,1758330640324,-3041672.4283027,0.0002,2]
[386515921,1758330640351,-4051.94322085,0.0002,2]
[386515922,1758330640363,-4723.11677545,0.0002,2]
[386515923,1758330641586,-0.01125298,0.0002,2]
[386515931,1758330645713,-295.51650308,0.00018562,2]
[386515932,1758330645724,-1000.0,0.000192,4]
[386515933,1758330645734,-2500.0,0.00019838,3]
[386515934,1758330645744,-54144.48349692,0.0002,2]
[386515935,1758330645877,-1667.96340004,0.0002,2]
[386515936,1758330645889,-348.06456,0.0002,2]
[386515939,1758330684492,-200.79741374,0.00018562,2]
[386515940,1758330687146,-157.731505,0.00018562,2]
[386515941,1758330689139,500.0,0.00016986,2]
[386515942,1758330690102,-141.47108126,0.00018562,2]
[386515943,1758330690124,-24.47920094,0.00018562,2]
[386515944,1758330696428,-153.10796383,0.00018562,2]
[386515945,1758330699302,-228.57879094,0.00018562,2]
[386515946,1758330699327,-45.30575871,0.00018562,2]
[386515947,1758330704131,-452.88454965,0.00018562,2]
[386515948,1758330708142,-1.80969164,0.00018562,2]
[386515949,1758330708170,-469.31354836,0.00018562,2]
[386515950,1758330710808,-30.68645164,0.00018562,2]
[386515951,1758330710833,-124.03952343,0.00018562,2]
[386515952,1758330714323,500.0,0.00016986,2]
[386515953,1758330714779,-300.0,0.00018562,2]
[386515954,1758330716746,-75.96047657,0.00018562,2]
[386515955,1758330716770,-77.00952343,0.00018562,2]
[386515956,1758330718054,500.0,0.00018082,2]
[386515957,1758330719856,-287.15417363,0.00018562,2]
[386515958,1758330725614,-204.47197539,0.00018561,2]
[386515959,1758330727780,-95.52802461,0.00018561,2]
[386515960,1758330727803,-248.53487449,0.00018562,2]
[386515961,1758330751295,-51.46512551,0.00018562,2]
[386515962,1758330751320,-135.83630294,0.00018562,2]
[386515963,1758330751344,-105.24472671,0.00018562,2]
[386515964,1758330753730,-271.71743605,0.00018561,2]
[386515965,1758330753754,-18.05256395,0.00018562,2]
[386515966,1758330756685,-291.58692708,0.00018561,2]
[386515967,1758330758360,-163.06,0.00018561,2]
[386515968,1758330760244,-45.35307292,0.00018561,2]
[386515969,1758330760266,-214.76333384,0.00018561,2]
[386515970,1758330762158,-182.58692169,0.00018561,2]
[386515971,1758330762180,-36.62248107,0.00018561,2]
[386515972,1758330777191,500.0,0.00016986,2]
[386515973,1758330786685,-242.30373804,0.0001856,2]
[386515974,1758330789665,-57.69626196,0.0001856,2]
[386515975,1758330789689,-191.42264385,0.00018561,2]
[386515976,1758330789714,-35.38097063,0.00018561,2]
[386515977,1758330791683,-160.23686224,0.00018561,2]
[386515978,1758330795647,-80.80889375,0.00018561,2]
[386515979,1758330795672,-259.69323875,0.00018561,2]
[386515980,1758330800026,-181.87,0.00018561,2]
[386515981,1758330802626,-58.43676125,0.00018561,2]
[386515982,1758330802650,-313.72856026,0.00018561,2]
[386515983,1758330804492,-160.70195756,0.00018561,2]
[386515984,1758330806425,-25.56948218,0.00018561,2]
[386515985,1758330806450,-278.96051782,0.00018561,2]
[386515986,1758330808378,-163.34964166,0.00018561,2]
[386515987,1758330810324,-57.68984052,0.00018561,2]
[386515988,1758330810350,-94.31015948,0.00018561,2]
[386515989,1758330813754,-277.11224421,0.00018561,2]
[386515990,1758330816648,-128.57759631,0.00018561,2]
[386515991,1758330816673,-197.06022695,0.00018561,2]
[386515992,1758330818558,-302.93977305,0.00018561,2]
[386515993,1758330818581,-24.81197347,0.00018561,2]
[386515994,1758330819986,-188.47234089,0.00018561,2]
[386515995,1758330820011,-53.96229783,0.00018562,2]
[386515996,1758330821909,-268.27,0.00018562,2]
[386515997,1758330825345,-194.05659393,0.00018562,2]
[386516000,1758331029970,5800.0,0.00013537,2]
[386516001,1758331052705,5800.0,0.00013529,2]
[386516002,1758331075451,5800.0,0.0001352,2]
[386516004,1758331098558,5800.0,0.00013512,2]
[386516005,1758331099636,-163.06,0.00018762,2]
[386516006,1758331193915,152.54,9.369e-05,2]
[386516007,1758331193944,152.54,0.00011242,2]
[386516008,1758331194174,152.54,0.00013116,2]
[386516009,1758331194408,152.54,0.0001499,2]
[386516010,1758331194850,152.54,0.00016864,2]
[386516011,1758331213089,-213.28431436,0.00018685,2]
[386516012,1758331217165,-324.35895145,0.00018685,2]
[386516013,1758331222792,-250.0,0.00018685,2]
[386516014,1758331270087,385.474874,0.0001848,2]
[386516015,1758331270740,-190.1241737,0.00018573,2]
[386516017,1758331441574,-163.06,0.00018563,2]
[386516018,1758331441597,-15.63663147,0.0001862,2]
[386516019,1758331444161,150.0,0.00018626,7]
[386516020,1758331446091,-134.36336853,0.0001862,2]
[386516021,1758331507279,150.0,0.00018,2]
[386516022,1758331507430,150.0,0.00018,2]
[386516023,1758331507570,150.0,0.00018,2]
[386516024,1758331514484,150.0,0.00018,2]
[386516025,1758331515611,150.0,0.00018,2]
[386516026,1758331517559,150.0,0.00018,2]
[386516027,1758331527534,150.0,0.00018,2]
[386516028,1758331527708,150.0,0.00018,2]
[386516029,1758331527834,150.0,0.00018,2]
[386516030,1758331529331,150.0,0.00018,2]
[386516031,1758331547279,-169.77741945,0.00018675,2]
[386516032,1758331549054,-194.26999462,0.00018675,2]
[386516033,1758331549078,-27.37817817,0.00018676,2]
[386516034,1758331551482,-400.0,0.00018676,2]
[386516035,1758331553922,-550.0,0.00018676,2]
[386516036,1758331554711,250.0,0.00015,2]
[386516037,1758331555791,-250.0,0.00018665,2]
[386516038,1758331555815,-331.33257771,0.00018676,2]
[386516039,1758331558178,-341.76996289,0.00018676,2]
[386516040,1758331562807,-151.06928123,0.00018676,2]